fUST/lending_fUST_20260511
["ID","MTS","AMOUNT","RATE_DAILY","PERIOD"]
[422024768,1778483447000,-275.72,0.00011232,2]
[422024765,1778483447000,-500.0,0.00011232,2]
[422024769,1778483447000,-263.26,0.00011232,2]
[422024766,1778483447000,-500.0,0.00011232,2]
[422024773,1778483447000,-461.04290449,0.00011232,2]
[422024775,1778483447000,-500.0,0.00011232,2]
[422024778,1778483447000,-500.0,0.00011232,2]
[422024767,1778483447000,-500.0,0.00011232,2]
[422024795,1778483590000,547.08,0.0001917,120]
[422024799,1778484074000,34570.07979237,0.00019178,120]
[422024840,1778484632000,-3866.58829771,9.618e-05,2]
[422024830,1778484632000,-1133.41170229,9.618e-05,2]
[422024844,1778484632000,-307.08275881,9.863e-05,2]
[422024846,1778484632000,-160.0,0.00010781,2]
[422024848,1778484632000,-300.0,0.00010857,2]
[422024849,1778484632000,-143.68412178,0.00010858,2]
[422024842,1778484632000,-211.30210208,9.715e-05,2]
[422024978,1778484647000,-12030.65847915,0.00010858,2]
[422024985,1778485037000,6030.0,0.00019,120]
[422024993,1778485305000,5000.0,0.00019,120]
[422025064,1778485832000,-308.90798921,4.732e-05,2]
[422025066,1778485832000,-176.7658414,5.002e-05,2]
[422025068,1778485832000,-364.51142726,6.732e-05,2]
[422025060,1778485832000,-4776.19436504,4.661e-05,2]
[422025062,1778485832000,-223.80563496,4.661e-05,2]
[422025070,1778485832000,-420.11486532,8.732e-05,2]
[422025058,1778485832000,-1300.55033444,4.614e-05,2]
[422025073,1778485832000,-300.0,9.699e-05,2]
[422025075,1778485832000,-7480.86889163,9.7e-05,2]
[422025079,1778485832000,-160.0,0.00010597,2]
[422025077,1778485832000,-168.06242794,0.00010072,2]
[422025084,1778485832000,-384.15552416,0.00010658,2]
[422025081,1778485832000,-28169.63891864,0.00010658,2]
[422025072,1778485832000,-868.0,9.698e-05,2]
[422025194,1778485838000,-500.0,0.00010657,2]
[422025197,1778485838000,-500.0,0.00010657,2]
[422025195,1778485838000,-500.0,0.00010657,2]
[422025198,1778485838000,-37799.77338641,0.00010658,2]
[422025196,1778485838000,-292.21500596,0.00010657,2]
[422025199,1778485838000,-3275.81272728,0.00010658,2]
[422025200,1778485838000,-18408.09418755,0.00010658,2]
[422025215,1778485840000,-2258.40144417,0.00010658,2]
[422025214,1778485840000,-845.15949572,0.00010658,2]
[422025257,1778485843000,-3441.0,0.00010552,2]
[422025258,1778485843000,-19479.87812968,0.00010658,2]
[422025256,1778485843000,-1559.0,0.00010552,2]
[422025268,1778485846000,-36691.4079085,0.00010658,2]
[422025270,1778485846000,-500.0,0.00010684,2]
[422025269,1778485846000,-9839.51789637,0.00010658,2]
[422025274,1778485846000,-475.71830338,0.00010732,2]
[422025273,1778485846000,-432.90073873,0.00010684,2]
[422025272,1778485846000,-500.0,0.00010684,2]
[422025276,1778485846000,-3340.8591956,0.00010813,2]
[422025277,1778485846000,-3603.50036606,0.00010813,2]
[422025275,1778485846000,-3107.48463,0.00010813,2]
[422025278,1778485846000,-950.33802487,0.00010813,2]
[422025279,1778485846000,-3822.95437579,0.00010813,2]
[422025271,1778485846000,-500.0,0.00010684,2]
[422025280,1778485948000,100000.0,0.00019178,120]
[422025285,1778486550000,200.0,0.00018573,120]
[422025291,1778486670000,200.0,0.00019059,120]
[422025292,1778486677000,542.72339246,0.00015645,120]
[422025295,1778486731000,200.0,0.00015678,120]
[422025334,1778486790000,200.0,0.00016452,120]
[422025346,1778486910000,200.0,0.00018807,120]
[422025347,1778487030000,200.0,0.0001899,120]
[422025378,1778487031000,-5000.0,9.161e-05,2]
[422025379,1778487031000,-285.43587396,9.254e-05,2]
[422025380,1778487031000,-1775.09250851,9.429e-05,2]
[422025377,1778487031000,-909.41626546,8.5e-05,7]
[422025408,1778487038000,-13607.10615054,0.0001042,2]
[422025406,1778487038000,-5883.76210225,0.0001042,2]
[422025401,1778487038000,-3641.6474265,0.00010418,2]
[422025404,1778487038000,-199.13500066,0.00010419,2]
[422025405,1778487038000,-30861.03305242,0.0001042,2]
[422025402,1778487038000,-166.3315852,0.00010418,2]
[422025400,1778487038000,-432.6102057,0.00010418,2]
[422025403,1778487038000,-894.2765343,0.00010418,2]
[422025399,1778487038000,-2739.34772309,9.429e-05,2]
[422025407,1778487038000,-39870.57879421,0.0001042,2]
[422025455,1778487040000,-345.79866952,0.0001042,2]
[422025555,1778487043000,-1240.0,0.0001042,2]
[422025556,1778487043000,-256.2,0.0001042,2]
[422025601,1778487046000,-5421.32976479,0.00010458,2]
[422025575,1778487046000,-677.35320419,0.00010457,2]
[422025573,1778487046000,-677.35320419,0.00010457,2]
[422025572,1778487046000,-342.0276058,0.00010457,2]
[422025571,1778487046000,-677.35320419,0.00010457,2]
[422025578,1778487046000,-677.35320419,0.00010457,2]
[422025579,1778487046000,-677.35320419,0.00010457,2]
[422025581,1778487046000,-677.35320419,0.00010457,2]
[422025582,1778487046000,-677.35320419,0.00010457,2]
[422025574,1778487046000,-677.35320419,0.00010457,2]
[422025580,1778487046000,-677.35320419,0.00010457,2]
[422025570,1778487046000,-44428.75836296,0.0001042,2]
[422025576,1778487046000,-677.35320419,0.00010457,2]
[422025569,1778487046000,-5000.0,0.00010316,2]
[422025584,1778487046000,-677.35320419,0.00010457,2]
[422025583,1778487046000,-677.35320419,0.00010457,2]
[422025577,1778487046000,-677.35320419,0.00010457,2]
[422025585,1778487046000,-677.35320419,0.00010457,2]
[422025600,1778487046000,-484.14,0.00010458,2]
[422025599,1778487046000,-9061.02956077,0.00010458,2]
[422025596,1778487046000,-677.35320418,0.00010457,2]
[422025597,1778487046000,-677.35320418,0.00010457,2]
[422025595,1778487046000,-677.35320418,0.00010457,2]
[422025593,1778487046000,-677.35320418,0.00010457,2]
[422025598,1778487046000,-1016.02980626,0.00010457,2]
[422025591,1778487046000,-677.35320418,0.00010457,2]
[422025588,1778487046000,-677.35320418,0.00010457,2]
[422025590,1778487046000,-677.35320418,0.00010457,2]
[422025592,1778487046000,-677.35320418,0.00010457,2]
[422025589,1778487046000,-677.35320418,0.00010457,2]
[422025586,1778487046000,-677.35320419,0.00010457,2]
[422025594,1778487046000,-677.35320418,0.00010457,2]
[422025587,1778487046000,-677.35320418,0.00010457,2]
[422025602,1778487091000,200.0,0.00016174,120]
[422025604,1778487150000,200.0,0.00015106,120]
[422025605,1778487270000,200.0,0.00016308,120]
[422025607,1778487318000,645.8,0.00019178,120]
[422025608,1778487330000,200.0,0.00016796,120]
[422025609,1778487352000,645.9,0.00019178,120]
[422025610,1778487390000,200.0,0.0001894,120]
[422025613,1778487781000,10000.0,0.00019178,120]
[422025614,1778487794000,513240.9904569,0.000191,120]
[422025789,1778488238000,-152.0,8.5e-05,7]
[422025780,1778488238000,-161.818701,4.005e-05,2]
[422025782,1778488238000,-2211.01820315,8.277e-05,2]
[422025781,1778488238000,-500.57196018,8.194e-05,2]
[422025784,1778488238000,-60.96132022,8.389e-05,2]
[422025783,1778488238000,-2788.98179685,8.277e-05,2]
[422025786,1778488238000,-198.74698643,8.389e-05,2]
[422025787,1778488238000,-1156.87769524,8.428e-05,2]
[422025785,1778488238000,-106.1160948,8.389e-05,2]
[422025788,1778488238000,-284.09806919,8.473e-05,2]
[422025800,1778488238000,-2096.00048863,9.823e-05,2]
[422025791,1778488238000,-2276.11968676,8.528e-05,2]
[422025795,1778488238000,-2543.41722734,8.628e-05,2]
[422025792,1778488238000,-300.0,8.627e-05,2]
[422025793,1778488238000,-300.0,8.627e-05,2]
[422025794,1778488238000,-300.0,8.627e-05,2]
[422025798,1778488238000,-2902.56977286,8.828e-05,2]
[422025797,1778488238000,-2722.99350003,8.728e-05,2]
[422025799,1778488238000,-3261.72231852,9.028e-05,2]
[422025790,1778488238000,-1151.0,8.527e-05,2]
[422025801,1778488238000,-1345.29810272,9.823e-05,2]
[422025802,1778488238000,-17123.13115681,0.0001012,2]
[422025992,1778488246000,-3508.42729039,0.0001012,2]
[422026021,1778488246000,-442.98,0.0001012,2]
[422026159,1778488561000,574.4,0.00019178,120]
[422026185,1778489432000,-1828.60152261,4.481e-05,2]
[422026182,1778489432000,-586.94081868,4.481e-05,2]
[422026388,1778489441000,-500.0,9.919e-05,2]
[422026391,1778489441000,-500.0,9.919e-05,2]
[422026387,1778489441000,-500.0,9.919e-05,2]
[422026389,1778489441000,-195.94209309,9.919e-05,2]
[422026394,1778489441000,-500.0,9.919e-05,2]
[422026386,1778489441000,-500.0,9.919e-05,2]
[422026396,1778489441000,-500.0,9.919e-05,2]
[422026384,1778489441000,-2496.0,9.918e-05,2]
[422026378,1778489441000,-285.22806102,4.549e-05,2]
[422026395,1778489441000,-500.0,9.919e-05,2]
[422026383,1778489441000,-300.0,9.917e-05,2]
[422026380,1778489441000,-250.0,6.12e-05,2]
[422026382,1778489441000,-387.91016299,8.549e-05,2]
[422026381,1778489441000,-336.56911201,6.549e-05,2]
[422026379,1778489441000,-175.303594,4.572e-05,2]
[422026377,1778489441000,-2584.45765871,4.481e-05,2]
[422026393,1778489441000,-500.0,9.919e-05,2]
[422026385,1778489441000,-500.0,9.919e-05,2]
[422026390,1778489441000,-500.0,9.919e-05,2]
[422026398,1778489441000,-500.0,9.919e-05,2]
[422026397,1778489441000,-500.0,9.919e-05,2]
[422026392,1778489441000,-500.0,9.919e-05,2]
[422026416,1778489441000,-1178.98896994,9.92e-05,2]
[422026414,1778489441000,-500.0,9.919e-05,2]
[422026411,1778489441000,-500.0,9.919e-05,2]
[422026413,1778489441000,-500.0,9.919e-05,2]
[422026412,1778489441000,-500.0,9.919e-05,2]
[422026410,1778489441000,-500.0,9.919e-05,2]
[422026407,1778489441000,-500.0,9.919e-05,2]
[422026403,1778489441000,-500.0,9.919e-05,2]
[422026415,1778489441000,-93297.71649118,9.92e-05,2]
[422026405,1778489441000,-500.0,9.919e-05,2]
[422026404,1778489441000,-500.0,9.919e-05,2]
[422026406,1778489441000,-500.0,9.919e-05,2]
[422026402,1778489441000,-500.0,9.919e-05,2]
[422026400,1778489441000,-500.0,9.919e-05,2]
[422026401,1778489441000,-500.0,9.919e-05,2]
[422026409,1778489441000,-500.0,9.919e-05,2]
[422026408,1778489441000,-500.0,9.919e-05,2]
[422026399,1778489441000,-500.0,9.919e-05,2]
[422026469,1778489442000,-500.0,0.00010957,2]
[422026459,1778489442000,-500.0,0.00010957,2]
[422026457,1778489442000,-500.0,0.00010957,2]
[422026455,1778489442000,-500.0,0.00010957,2]
[422026452,1778489442000,-155.0,0.00010957,2]
[422026454,1778489442000,-458.47524824,0.00010957,2]
[422026448,1778489442000,-420.0,0.00010909,2]
[422026453,1778489442000,-155.0,0.00010957,2]
[422026451,1778489442000,-151.0,0.00010957,2]
[422026450,1778489442000,-156.545,0.00010957,2]
[422026458,1778489442000,-500.0,0.00010957,2]
[422026449,1778489442000,-155.0,0.00010957,2]
[422026462,1778489442000,-232.43219104,0.00010957,2]
[422026470,1778489442000,-500.0,0.00010957,2]
[422026461,1778489442000,-500.0,0.00010957,2]
[422026465,1778489442000,-500.0,0.00010957,2]
[422026467,1778489442000,-500.0,0.00010957,2]
[422026464,1778489442000,-500.0,0.00010957,2]
[422026468,1778489442000,-500.0,0.00010957,2]
[422026463,1778489442000,-500.0,0.00010957,2]
[422026466,1778489442000,-500.0,0.00010957,2]
[422026456,1778489442000,-500.0,0.00010957,2]
[422026472,1778489442000,-500.0,0.00010957,2]
[422026482,1778489442000,-335.0,0.00010957,2]
[422026475,1778489442000,-500.0,0.00010957,2]
[422026483,1778489442000,-500.0,0.00010957,2]
[422026471,1778489442000,-500.0,0.00010957,2]
[422026460,1778489442000,-500.0,0.00010957,2]
[422026445,1778489442000,-439.25121397,0.00010549,2]
[422026438,1778489442000,-300.0,0.00010199,2]
[422026446,1778489442000,-1310.78580018,0.00010619,2]
[422026418,1778489442000,-19000.0,0.0001,2]
[422026417,1778489442000,-3656.25422524,9.92e-05,2]
[422026420,1778489442000,-25323.31144091,0.00010019,2]
[422026430,1778489442000,-300.0,0.00010199,2]
[422026419,1778489442000,-1310.7858002,0.0001,2]
[422026421,1778489442000,-154.93,0.00010123,2]
[422026422,1778489442000,-1310.78580018,0.0001014,2]
[422026423,1778489442000,-175.62,0.00010167,2]
[422026424,1778489442000,-451.7759143,0.00010199,2]
[422026427,1778489442000,-300.0,0.00010199,2]
[422026429,1778489442000,-300.0,0.00010199,2]
[422026425,1778489442000,-300.0,0.00010199,2]
[422026428,1778489442000,-300.0,0.00010199,2]
[422026447,1778489442000,-1310.78580018,0.00010858,2]
[422026426,1778489442000,-300.0,0.00010199,2]
[422026433,1778489442000,-300.0,0.00010199,2]
[422026443,1778489442000,-3757.9359825,0.00010426,2]
[422026432,1778489442000,-300.0,0.00010199,2]
[422026435,1778489442000,-300.0,0.00010199,2]
[422026434,1778489442000,-300.0,0.00010199,2]
[422026436,1778489442000,-300.0,0.00010199,2]
[422026439,1778489442000,-300.0,0.00010199,2]
[422026474,1778489442000,-500.0,0.00010957,2]
[422026440,1778489442000,-197.88,0.00010212,2]
[422026442,1778489442000,-600.0,0.00010402,2]
[422026437,1778489442000,-300.0,0.00010199,2]
[422026441,1778489442000,-1310.78580018,0.00010379,2]
[422026444,1778489442000,-160.0,0.00010507,2]
[422026431,1778489442000,-300.0,0.00010199,2]
[422026480,1778489442000,-500.0,0.00010957,2]
[422026518,1778489442000,-500.0,0.00010958,2]
[422026473,1778489442000,-500.0,0.00010957,2]
[422026516,1778489442000,-502.60466193,0.00010958,2]
[422026517,1778489442000,-500.0,0.00010958,2]
[422026512,1778489442000,-500.0,0.00010958,2]
[422026515,1778489442000,-500.0,0.00010958,2]
[422026514,1778489442000,-500.0,0.00010958,2]
[422026513,1778489442000,-151.0,0.00010958,2]
[422026520,1778489442000,-500.0,0.00010958,2]
[422026519,1778489442000,-500.0,0.00010958,2]
[422026522,1778489442000,-500.0,0.00010958,2]
[422026521,1778489442000,-500.0,0.00010958,2]
[422026523,1778489442000,-500.0,0.00010958,2]
[422026532,1778489442000,-500.0,0.00010958,2]
[422026524,1778489442000,-500.0,0.00010958,2]
[422026511,1778489442000,-500.0,0.00010958,2]
[422026527,1778489442000,-500.0,0.00010958,2]
[422026529,1778489442000,-500.0,0.00010958,2]
[422026531,1778489442000,-500.0,0.00010958,2]
[422026530,1778489442000,-500.0,0.00010958,2]
[422026528,1778489442000,-500.0,0.00010958,2]
[422026533,1778489442000,-267.4320013,0.00010958,2]
[422026537,1778489442000,-500.0,0.00010958,2]
[422026535,1778489442000,-500.0,0.00010958,2]
[422026538,1778489442000,-500.0,0.00010958,2]
[422026536,1778489442000,-500.0,0.00010958,2]
[422026539,1778489442000,-500.0,0.00010958,2]
[422026541,1778489442000,-500.0,0.00010958,2]
[422026540,1778489442000,-500.0,0.00010958,2]
[422026476,1778489442000,-500.0,0.00010957,2]
[422026526,1778489442000,-500.0,0.00010958,2]
[422026505,1778489442000,-500.0,0.00010958,2]
[422026525,1778489442000,-503.6751415,0.00010958,2]
[422026503,1778489442000,-500.0,0.00010958,2]
[422026507,1778489442000,-500.0,0.00010958,2]
[422026479,1778489442000,-500.0,0.00010957,2]
[422026481,1778489442000,-500.0,0.00010957,2]
[422026477,1778489442000,-500.0,0.00010957,2]
[422026478,1778489442000,-500.0,0.00010957,2]
[422026484,1778489442000,-500.71246982,0.00010958,2]
[422026486,1778489442000,-500.0,0.00010958,2]
[422026494,1778489442000,-597.7081018,0.00010958,2]
[422026491,1778489442000,-500.0,0.00010958,2]
[422026495,1778489442000,-500.0,0.00010958,2]
[422026487,1778489442000,-500.0,0.00010958,2]
[422026485,1778489442000,-500.0,0.00010958,2]
[422026488,1778489442000,-500.0,0.00010958,2]
[422026496,1778489442000,-500.0,0.00010958,2]
[422026490,1778489442000,-500.0,0.00010958,2]
[422026504,1778489442000,-500.0,0.00010958,2]
[422026506,1778489442000,-500.0,0.00010958,2]
[422026489,1778489442000,-500.0,0.00010958,2]
[422026502,1778489442000,-500.0,0.00010958,2]
[422026499,1778489442000,-500.0,0.00010958,2]
[422026509,1778489442000,-500.0,0.00010958,2]
[422026508,1778489442000,-500.0,0.00010958,2]
[422026510,1778489442000,-500.0,0.00010958,2]
[422026500,1778489442000,-500.0,0.00010958,2]
[422026498,1778489442000,-500.0,0.00010958,2]
[422026497,1778489442000,-500.0,0.00010958,2]
[422026493,1778489442000,-500.0,0.00010958,2]
[422026492,1778489442000,-500.0,0.00010958,2]
[422026501,1778489442000,-500.0,0.00010958,2]
[422026580,1778489443000,-500.0,0.00010958,2]
[422026598,1778489443000,-500.0,0.00010958,2]
[422026588,1778489443000,-500.0,0.00010958,2]
[422026583,1778489443000,-500.0,0.00010958,2]
[422026582,1778489443000,-500.0,0.00010958,2]
[422026575,1778489443000,-500.0,0.00010958,2]
[422026579,1778489443000,-500.0,0.00010958,2]
[422026573,1778489443000,-500.0,0.00010958,2]
[422026578,1778489443000,-500.0,0.00010958,2]
[422026581,1778489443000,-187.09899444,0.00010958,2]
[422026576,1778489443000,-500.0,0.00010958,2]
[422026599,1778489443000,-500.0,0.00010958,2]
[422026586,1778489443000,-500.0,0.00010958,2]
[422026587,1778489443000,-500.0,0.00010958,2]
[422026604,1778489443000,-336.05908322,0.00010958,2]
[422026589,1778489443000,-500.0,0.00010958,2]
[422026590,1778489443000,-502.64647979,0.00010958,2]
[422026595,1778489443000,-500.0,0.00010958,2]
[422026594,1778489443000,-500.0,0.00010958,2]
[422026596,1778489443000,-500.0,0.00010958,2]
[422026592,1778489443000,-500.0,0.00010958,2]
[422026593,1778489443000,-500.0,0.00010958,2]
[422026597,1778489443000,-500.0,0.00010958,2]
[422026601,1778489443000,-500.0,0.00010958,2]
[422026612,1778489443000,-500.0,0.00010958,2]
[422026611,1778489443000,-500.0,0.00010958,2]
[422026608,1778489443000,-500.0,0.00010958,2]
[422026603,1778489443000,-500.0,0.00010958,2]
[422026585,1778489443000,-500.0,0.00010958,2]
[422026591,1778489443000,-500.0,0.00010958,2]
[422026577,1778489443000,-500.0,0.00010958,2]
[422026542,1778489443000,-500.0,0.00010958,2]
[422026574,1778489443000,-500.0,0.00010958,2]
[422026607,1778489443000,-500.0,0.00010958,2]
[422026545,1778489443000,-501.42392221,0.00010958,2]
[422026544,1778489443000,-500.0,0.00010958,2]
[422026546,1778489443000,-500.0,0.00010958,2]
[422026543,1778489443000,-500.0,0.00010958,2]
[422026548,1778489443000,-151.0,0.00010958,2]
[422026547,1778489443000,-151.0,0.00010958,2]
[422026550,1778489443000,-500.0,0.00010958,2]
[422026551,1778489443000,-500.0,0.00010958,2]
[422026557,1778489443000,-500.0,0.00010958,2]
[422026558,1778489443000,-500.0,0.00010958,2]
[422026549,1778489443000,-151.0,0.00010958,2]
[422026554,1778489443000,-500.0,0.00010958,2]
[422026559,1778489443000,-501.08746599,0.00010958,2]
[422026556,1778489443000,-500.0,0.00010958,2]
[422026552,1778489443000,-500.0,0.00010958,2]
[422026553,1778489443000,-500.0,0.00010958,2]
[422026562,1778489443000,-1693.0809,0.00010958,2]
[422026563,1778489443000,-500.0,0.00010958,2]
[422026566,1778489443000,-500.0,0.00010958,2]
[422026560,1778489443000,-500.0,0.00010958,2]
[422026564,1778489443000,-500.0,0.00010958,2]
[422026569,1778489443000,-500.0,0.00010958,2]
[422026571,1778489443000,-500.0,0.00010958,2]
[422026568,1778489443000,-500.0,0.00010958,2]
[422026561,1778489443000,-500.0,0.00010958,2]
[422026565,1778489443000,-500.0,0.00010958,2]
[422026570,1778489443000,-500.0,0.00010958,2]
[422026567,1778489443000,-500.0,0.00010958,2]
[422026584,1778489443000,-500.0,0.00010958,2]
[422026600,1778489443000,-500.0,0.00010958,2]
[422026572,1778489443000,-500.0,0.00010958,2]
[422026602,1778489443000,-500.0,0.00010958,2]
[422026643,1778489443000,-500.0,0.00010958,2]
[422026647,1778489443000,-500.0,0.00010958,2]
[422026645,1778489443000,-500.0,0.00010958,2]
[422026646,1778489443000,-500.0,0.00010958,2]
[422026644,1778489443000,-500.0,0.00010958,2]
[422026648,1778489443000,-500.0,0.00010958,2]
[422026641,1778489443000,-500.0,0.00010958,2]
[422026651,1778489443000,-500.0,0.00010958,2]
[422026669,1778489443000,-500.0,0.00010958,2]
[422026650,1778489443000,-500.0,0.00010958,2]
[422026652,1778489443000,-500.0,0.00010958,2]
[422026665,1778489443000,-500.0,0.00010958,2]
[422026655,1778489443000,-500.0,0.00010958,2]
[422026666,1778489443000,-502.57735358,0.00010958,2]
[422026654,1778489443000,-506.49,0.00010958,2]
[422026667,1778489443000,-500.0,0.00010958,2]
[422026657,1778489443000,-500.0,0.00010958,2]
[422026659,1778489443000,-500.0,0.00010958,2]
[422026656,1778489443000,-500.0,0.00010958,2]
[422026663,1778489443000,-500.0,0.00010958,2]
[422026660,1778489443000,-500.0,0.00010958,2]
[422026661,1778489443000,-500.0,0.00010958,2]
[422026662,1778489443000,-500.0,0.00010958,2]
[422026664,1778489443000,-500.0,0.00010958,2]
[422026670,1778489443000,-500.0,0.00010958,2]
[422026672,1778489443000,-502.05113737,0.00010958,2]
[422026668,1778489443000,-500.0,0.00010958,2]
[422026671,1778489443000,-500.0,0.00010958,2]
[422026673,1778489443000,-500.0,0.00010958,2]
[422026653,1778489443000,-500.0,0.00010958,2]
[422026642,1778489443000,-625.37927512,0.00010958,2]
[422026658,1778489443000,-500.0,0.00010958,2]
[422026640,1778489443000,-500.0,0.00010958,2]
[422026649,1778489443000,-501.8841888,0.00010958,2]
[422026605,1778489443000,-500.0,0.00010958,2]
[422026610,1778489443000,-504.92294907,0.00010958,2]
[422026606,1778489443000,-500.0,0.00010958,2]
[422026613,1778489443000,-502.43062856,0.00010958,2]
[422026616,1778489443000,-500.0,0.00010958,2]
[422026618,1778489443000,-500.0,0.00010958,2]
[422026615,1778489443000,-500.0,0.00010958,2]
[422026619,1778489443000,-500.0,0.00010958,2]
[422026617,1778489443000,-500.0,0.00010958,2]
[422026625,1778489443000,-500.0,0.00010958,2]
[422026614,1778489443000,-500.0,0.00010958,2]
[422026624,1778489443000,-500.0,0.00010958,2]
[422026622,1778489443000,-500.0,0.00010958,2]
[422026621,1778489443000,-500.0,0.00010958,2]
[422026609,1778489443000,-500.0,0.00010958,2]
[422026623,1778489443000,-500.0,0.00010958,2]
[422026635,1778489443000,-529.66,0.00010958,2]
[422026620,1778489443000,-500.0,0.00010958,2]
[422026633,1778489443000,-500.0,0.00010958,2]
[422026630,1778489443000,-500.0,0.00010958,2]
[422026629,1778489443000,-500.0,0.00010958,2]
[422026632,1778489443000,-500.0,0.00010958,2]
[422026631,1778489443000,-500.0,0.00010958,2]
[422026636,1778489443000,-500.0,0.00010958,2]
[422026628,1778489443000,-500.0,0.00010958,2]
[422026639,1778489443000,-500.0,0.00010958,2]
[422026637,1778489443000,-500.0,0.00010958,2]
[422026638,1778489443000,-500.0,0.00010958,2]
[422026627,1778489443000,-500.0,0.00010958,2]
[422026626,1778489443000,-500.0,0.00010958,2]
[422026634,1778489443000,-500.0,0.00010958,2]
[422026703,1778489444000,-203.59719746,0.00010958,2]
[422026698,1778489444000,-500.0,0.00010958,2]
[422026697,1778489444000,-518.39141083,0.00010958,2]
[422026701,1778489444000,-605.32,0.00010958,2]
[422026699,1778489444000,-501.76729634,0.00010958,2]
[422026700,1778489444000,-500.0,0.00010958,2]
[422026702,1778489444000,-500.0,0.00010958,2]
[422026705,1778489444000,-500.0,0.00010958,2]
[422026709,1778489444000,-500.0,0.00010958,2]
[422026707,1778489444000,-500.0,0.00010958,2]
[422026706,1778489444000,-500.0,0.00010958,2]
[422026713,1778489444000,-501.00965863,0.00010958,2]
[422026714,1778489444000,-500.0,0.00010958,2]
[422026696,1778489444000,-500.0,0.00010958,2]
[422026708,1778489444000,-500.0,0.00010958,2]
[422026711,1778489444000,-500.0,0.00010958,2]
[422026710,1778489444000,-500.0,0.00010958,2]
[422026704,1778489444000,-500.0,0.00010958,2]
[422026690,1778489444000,-500.0,0.00010958,2]
[422026687,1778489444000,-500.0,0.00010958,2]
[422026692,1778489444000,-500.0,0.00010958,2]
[422026712,1778489444000,-500.0,0.00010958,2]
[422026677,1778489444000,-500.0,0.00010958,2]
[422026679,1778489444000,-500.0,0.00010958,2]
[422026676,1778489444000,-500.0,0.00010958,2]
[422026675,1778489444000,-500.0,0.00010958,2]
[422026674,1778489444000,-500.0,0.00010958,2]
[422026681,1778489444000,-500.0,0.00010958,2]
[422026682,1778489444000,-500.0,0.00010958,2]
[422026695,1778489444000,-500.0,0.00010958,2]
[422026680,1778489444000,-500.0,0.00010958,2]
[422026685,1778489444000,-500.0,0.00010958,2]
[422026684,1778489444000,-502.54561708,0.00010958,2]
[422026686,1778489444000,-500.0,0.00010958,2]
[422026689,1778489444000,-500.0,0.00010958,2]
[422026688,1778489444000,-500.0,0.00010958,2]
[422026691,1778489444000,-502.63220457,0.00010958,2]
[422026693,1778489444000,-500.0,0.00010958,2]
[422026694,1778489444000,-630.84,0.00010958,2]
[422026683,1778489444000,-157.98667657,0.00010958,2]
[422026678,1778489444000,-500.0,0.00010958,2]
[422026716,1778489444000,-155.04044621,0.00010958,2]
[422026718,1778489444000,-309.29775293,0.00010958,2]
[422026736,1778489444000,-500.0,0.00010958,2]
[422026741,1778489444000,-1220.25,0.00010958,2]
[422026742,1778489444000,-500.0,0.00010958,2]
[422026743,1778489444000,-500.0,0.00010958,2]
[422026744,1778489444000,-500.0,0.00010958,2]
[422026746,1778489444000,-500.0,0.00010958,2]
[422026745,1778489444000,-500.0,0.00010958,2]
[422026750,1778489444000,-500.0,0.00010958,2]
[422026740,1778489444000,-500.0,0.00010958,2]
[422026747,1778489444000,-500.0,0.00010958,2]